bitfinex/quotes_SOLUSD_20251024
["timestamp","ask_amount","ask_price","bid_price","bid_amount"]
[1761320566770,37.06,189.47,189.43,0.69]
[1761320566973,10.87647521,189.46,189.44,2.09046534]
[1761320568170,10.87647521,189.46,189.44,2.78046534]
[1761320568988,10.87647521,189.46,189.44,0.69]
[1761320569175,10.87647521,189.46,189.43,7.3692129]
[1761320569367,10.87647521,189.46,189.44,0.69]
[1761320573366,10.87647521,189.46,189.44,5.96867343]
[1761320573981,10.87647521,189.46,189.44,8.05913877]
[1761320574178,10.87647521,189.46,189.45,0.66]
[1761320575668,10.87647521,189.46,189.45,5.93843758]
[1761320576493,10.87647521,189.46,189.45,5.27843758]
[1761320576792,10.87647521,189.46,189.44,5.27866132]
[1761320576963,10.87647521,189.46,189.44,5.98866132]
[1761320577990,37.04,189.45,189.44,5.98866132]
[1761320580999,10.87647521,189.44,189.37,5.28066747]
[1761320581177,10.87647521,189.41,189.38,2.09046534]
[1761320581378,0.2,189.48,189.4,2.09046534]
[1761320581603,10.87647521,189.46,189.43,2.09046534]
[1761320581972,10.87647521,189.46,189.44,0.71]
[1761320582896,10.87647521,189.46,189.44,8.07904071]
[1761320583077,10.87647521,189.46,189.44,5.98857537]
[1761320583697,10.87647521,189.46,189.45,0.71]
[1761320584303,10.87647521,189.46,189.44,5.98857537]
[1761320584603,10.87647521,189.46,189.45,0.71]
[1761320585002,10.87647521,189.46,189.45,5.98843758]
[1761320585388,10.87647521,189.46,189.43,0.71]
[1761320585591,37.02,189.45,189.44,0.71]
[1761320585787,37.02,189.45,189.44,2.80046534]
[1761320585994,0.2,189.48,189.44,2.80046534]
[1761320586191,0.2,189.48,189.47,2.09046534]
[1761320586389,37.22,189.48,189.47,2.80046534]
[1761320586598,37.22,189.48,189.47,8.07834574]
[1761320590088,37.22,189.48,189.47,5.9878804]
[1761320590307,0.2,189.48,189.47,8.07834574]
[1761320592993,1e-08,189.48,189.47,8.07834574]
[1761320604313,1e-08,189.48,189.47,7.36834574]
[1761320604498,1e-08,189.48,189.47,5.2778804]
[1761320604701,1e-08,189.48,189.47,7.36834574]
[1761320605314,1e-08,189.48,189.47,8.07834574]
[1761320607822,1e-08,189.5,189.49,22.88]
[1761320608020,1e-08,189.5,189.49,24.97046534]
[1761320608236,1e-08,189.5,189.49,25.68046534]
[1761320608526,37.0,189.53,189.5,22.88]
[1761320608723,37.0,189.53,189.52,2.09046534]
[1761320608930,37.0,189.53,189.52,7.3669533]
[1761320609108,37.0,189.53,189.52,8.0769533]
[1761320611237,37.0,189.53,189.52,7.3669533]
[1761320612725,37.0,189.53,189.52,3.25811046]
[1761320613316,37.0,189.53,189.51,5.27676639]
[1761320614216,37.0,189.53,189.51,8.53487685]
[1761320614535,0.41,189.52,189.51,5.27676639]
[1761320614723,37.41,189.53,189.51,5.27676639]
[1761320614925,0.41,189.52,189.48,5.27760185]
[1761320615326,0.41,189.52,189.48,8.53571231]
[1761320615534,0.41,189.52,189.49,3.25811046]
[1761320616237,0.41,189.52,189.5,5.27704485]
[1761320617636,37.0,189.53,189.5,5.27704485]
[1761320617824,37.41,189.53,189.5,5.27704485]
[1761320618027,37.0,189.53,189.5,5.96704485]
[1761320618532,37.0,189.53,189.5,3.94811046]
[1761320619513,37.0,189.53,189.5,3.25811046]
[1761320620635,37.0,189.53,189.51,5.27676639]
[1761320624119,10.87647521,189.56,189.52,3.94811046]
[1761320624320,10.87647521,189.58,189.54,3.25811046]
[1761320624643,37.0,189.57,189.55,3.25811046]
[1761320625421,0.41,189.58,189.55,3.25811046]
[1761320625632,36.98,189.57,189.56,5.27537455]
[1761320627729,36.98,189.57,189.54,8.53404166]
[1761320627931,36.98,189.57,189.54,9.22404166]
[1761320629350,36.98,189.57,189.54,8.53404166]
[1761320629728,36.98,189.57,189.54,9.24404166]
[1761320630141,36.98,189.57,189.54,5.2759312]
[1761320630445,37.39,189.57,189.54,8.53404166]
[1761320631142,37.39,189.57,189.54,5.2759312]
[1761320631946,37.39,189.57,189.53,18.46605612]
[1761320633042,37.39,189.57,189.53,19.17605612]
[1761320636256,37.39,189.57,189.53,18.46605612]
[1761320636457,37.39,189.57,189.53,19.17605612]
[1761320637140,36.98,189.57,189.53,19.17605612]
[1761320637847,37.39,189.57,189.53,19.17605612]
[1761320638551,0.41,189.56,189.53,18.46605612]
[1761320639457,0.41,189.56,189.53,13.18984655]
[1761320639657,40.64811046,189.57,189.53,13.18984655]
[1761320640142,40.23811046,189.57,189.53,13.18984655]
[1761320640461,0.41,189.56,189.53,13.18984655]
[1761320640856,40.23811046,189.57,189.53,13.18984655]
[1761320641151,0.41,189.56,189.53,13.18984655]
[1761320641352,40.64811046,189.57,189.53,18.46605612]
[1761320641560,40.64811046,189.57,189.53,19.13605612]
[1761320642136,36.98,189.57,189.53,19.13605612]
[1761320643044,37.39,189.57,189.53,19.13605612]
[1761320643564,40.64811046,189.57,189.53,19.13605612]
[1761320644066,37.39,189.57,189.53,19.13605612]
[1761320644661,36.98,189.57,189.53,18.46605612]
[1761320644870,37.39,189.57,189.53,18.46605612]
[1761320645165,36.98,189.57,189.53,19.13605612]
[1761320645364,36.98,189.57,189.54,0.67]
[1761320645867,36.98,189.57,189.55,5.27565286]
[1761320646056,103.3,189.59,189.55,5.27565286]
[1761320646359,10.87647521,189.57,189.55,5.94565286]
[1761320647265,103.3,189.59,189.56,3.92811046]
[1761320647566,36.98,189.58,189.57,3.25811046]
[1761320647769,0.2,189.65,189.58,23.55]
[1761320647977,36.98,189.64,189.59,0.67]
[1761320648281,36.98,189.64,189.61,3.25811046]
[1761320648755,36.98,189.64,189.62,0.67]
[1761320649158,36.98,189.64,189.63,5.2734272]
[1761320650473,36.98,189.64,189.62,5.9437053]
[1761320651047,36.98,189.64,189.62,8.53181576]
[1761320651358,36.98,189.64,189.63,0.67]
[1761320651559,36.98,189.64,189.63,3.92811046]
[1761320651758,36.96,189.64,189.63,3.92811046]
[1761320652353,36.96,189.64,189.63,0.67]
[1761320652554,36.96,189.64,189.63,5.9434272]
[1761320652763,36.96,189.64,189.62,8.53174506]
[1761320653375,36.96,189.64,189.63,0.67]
[1761320654774,36.96,189.64,189.63,5.9434272]
[1761320657670,36.96,189.64,189.63,3.92811046]
[1761320658173,36.96,189.64,189.63,9.20153766]
[1761320658382,36.96,189.64,189.63,5.9434272]
[1761320661183,36.96,189.64,189.63,9.20153766]
[1761320664171,36.96,189.64,189.63,5.2734272]
[1761320664473,36.96,189.64,189.61,5.94373406]
[1761320664788,36.96,189.64,189.61,9.20184452]
[1761320664957,36.96,189.64,189.62,0.67]
[1761320665384,36.96,189.64,189.63,5.2734272]
[1761320666485,36.96,189.64,189.63,5.9434272]
[1761320667073,40.62811046,189.64,189.61,5.27398343]
[1761320667284,3.25811046,189.63,189.61,5.27398343]
[1761320667473,36.94,189.62,189.61,5.27398343]
[1761320668074,36.94,189.62,189.6,5.2742616]
[1761320668259,36.94,189.62,189.59,0.67]
[1761320668466,36.94,189.62,189.56,22.88]
[1761320668467,10.87647521,189.59,189.54,3.25811046]
[1761320668780,40.60811046,189.58,189.53,0.67]
[1761320668987,3.25811046,189.57,189.52,13.19053293]
[1761320669163,3.25811046,189.55,189.5,5.27704289]
[1761320669362,40.19811046,189.54,189.5,19.13965502]
[1761320669573,36.94,189.54,189.51,0.67]
[1761320670283,36.94,189.54,189.52,5.27648796]
[1761320672576,36.94,189.54,189.52,5.94648796]
[1761320674190,10.87647521,189.59,189.53,2.75561046]
[1761320674366,36.94,189.58,189.54,2.08561046]
[1761320674692,36.94,189.58,189.54,2.75561046]
[1761320674882,10.87647521,189.59,189.55,2.75561046]
[1761320675072,36.94,189.57,189.55,2.75561046]
[1761320675272,36.94,189.57,189.55,0.67]
[1761320676087,36.94,189.57,189.56,5.27537455]
[1761320676591,36.94,189.57,189.56,5.94537455]
[1761320676976,36.94,189.57,189.56,0.67]
[1761320677379,103.3,189.6,189.56,0.67]
[1761320677580,36.94,189.59,189.56,2.75561046]
[1761320677969,36.94,189.59,189.57,0.67]
[1761320678276,36.94,189.59,189.58,5.27481801]
[1761320678786,103.3,189.6,189.58,5.94481801]
[1761320678992,36.94,189.59,189.58,5.94481801]
[1761320679166,36.94,189.59,189.58,5.27481801]
[1761320679371,36.94,189.59,189.58,8.03042847]
[1761320681301,36.94,189.59,189.58,5.27481801]
[1761320681671,10.87647521,189.63,189.58,8.03042847]
[1761320681873,36.94,189.62,189.59,2.75561046]
[1761320682073,10.87647521,189.64,189.6,2.08561046]
[1761320682273,36.94,189.63,189.61,5.27398343]
[1761320683327,36.94,189.63,189.61,5.94398343]
[1761320683873,10.87647521,189.64,189.62,0.67]
[1761320684096,36.94,189.63,189.62,2.75561046]
[1761320684483,36.94,189.63,189.62,8.02931576]
[1761320685099,36.94,189.63,189.62,5.9437053]
[1761320685289,36.94,189.63,189.61,5.27395671]
[1761320685597,36.94,189.63,189.59,5.27434895]
[1761320685598,37.35,189.63,189.59,5.27434895]
[1761320686494,12.96208567,189.62,189.58,5.27475118]
[1761320686792,12.96208567,189.62,189.57,5.27502412]
[1761320686793,2.08561046,189.6,189.57,5.27502412]
[1761320687089,36.94,189.59,189.57,5.27502412]
[1761320687680,36.94,189.59,189.56,13.1884018]
[1761320687995,36.94,189.59,189.56,13.8584018]
[1761320688201,36.94,189.59,189.57,0.67]
[1761320688370,36.94,189.59,189.56,13.8584018]
[1761320688798,36.94,189.59,189.56,18.46377635]
[1761320688995,36.94,189.59,189.57,0.67]
[1761320689504,36.94,189.58,189.57,0.67]
[1761320689998,13.37208567,189.62,189.58,5.27481801]
[1761320690192,39.43561046,189.61,189.58,5.27481801]
[1761320691297,39.43561046,189.61,189.57,5.27509627]
[1761320691880,39.43561046,189.61,189.57,5.99509627]
[1761320692796,36.94,189.6,189.57,5.99509627]
[1761320693500,36.94,189.6,189.57,20.5484474]
[1761320693706,10.87647521,189.62,189.59,2.08561046]
[1761320693902,36.94,189.61,189.59,2.08561046]
[1761320694099,36.94,189.61,189.59,2.80561046]
[1761320695194,36.94,189.61,189.58,2.08561046]
[1761320695398,36.94,189.61,189.58,2.80561046]
[1761320695593,36.94,189.61,189.59,5.27453979]
[1761320697310,36.94,189.61,189.59,5.93453979]
[1761320700706,2.49561046,189.6,189.5,0.66]
[1761320700909,2.08561046,189.55,189.5,0.66]
[1761320701084,36.92,189.54,189.49,0.66]
[1761320701289,10.87647521,189.58,189.47,4.39857499]
[1761320701290,2.08561046,189.52,189.47,0.66]
[1761320701489,36.92,189.51,189.47,0.66]
[1761320701706,36.92,189.51,189.41,4.39857499]
[1761320701707,39.41561046,189.51,189.41,4.39857499]
[1761320701908,2.08561046,189.48,189.42,0.66]
[1761320702087,36.92,189.47,189.36,20.25439275]
[1761320702288,47.79647521,189.46,189.38,0.66]
[1761320702512,36.92,189.45,189.38,0.66]
[1761320702807,36.92,189.45,189.4,22.88]
[1761320703012,36.92,189.45,189.39,22.88]
[1761320703190,36.92,189.45,189.41,2.08561046]
[1761320703596,36.92,189.45,189.41,2.74561046]
[1761320703800,39.41561046,189.45,189.39,0.66]
[1761320704109,39.41561046,189.45,189.36,5.94094634]
[1761320704110,12.96208567,189.42,189.36,5.94094634]
[1761320704310,36.92,189.41,189.35,0.66]
[1761320704520,36.92,189.41,189.35,2.74561046]
[1761320704814,11.28647521,189.4,189.33,0.1]
[1761320704990,10.87647521,189.36,189.33,0.1]
[1761320705189,36.94,189.35,189.33,0.1]
[1761320705399,36.94,189.35,189.34,0.66]
[1761320705918,36.94,189.35,189.33,7.467307]
[1761320706097,36.94,189.35,189.33,8.127307]
[1761320706301,36.94,189.35,189.33,8.12734199]
[1761320706628,0.41,189.34,189.33,0.1]
[1761320706910,10.87647521,189.33,189.3,0.1]
[1761320707114,10.87647521,189.31,189.3,0.1]
[1761320707322,22.88,189.29,189.28,0.1]
[1761320707502,33.75647521,189.29,189.28,0.1]
[1761320707712,10.87647521,189.29,189.28,0.1]
[1761320707906,47.81647521,189.29,189.28,0.1]
[1761320708301,10.87647521,189.28,189.15,2.74784012]
[1761320708501,2.08561046,189.24,189.17,0.66]
[1761320708702,10.87647521,189.28,189.17,0.66]
[1761320709022,2.08561046,189.24,189.17,0.66]
[1761320709191,10.87647521,189.21,189.15,3.40784012]
[1761320709399,36.94,189.2,189.19,2.08561046]
[1761320709610,36.94,189.24,189.19,2.08561046]
[1761320709811,36.94,189.24,189.23,2.08561046]
[1761320710021,10.87647521,189.23,189.16,5.28713087]
[1761320710237,35.98,189.22,189.12,0.66]
[1761320710553,24.96561046,189.27,189.12,0.66]
[1761320710554,10.87647521,189.2,189.12,8.34244184]
[1761320710821,37.04,189.21,189.19,5.28543704]
[1761320710993,37.04,189.21,189.2,5.3269849]
[1761320711199,37.04,189.21,189.2,0.66]
[1761320711401,0.11,189.31,189.22,22.88]
[1761320711700,10.87647521,189.29,189.17,0.66]
[1761320711900,5.3269849,189.24,189.19,5.3269849]
[1761320712113,0.11,189.32,189.23,5.3269849]
[1761320712310,37.18,189.31,189.28,5.3269849]
[1761320712513,37.18,189.31,189.24,0.66]
[1761320712514,37.18,189.31,189.29,5.3269849]
[1761320712723,37.18,189.31,189.24,5.94419966]
[1761320712928,10.87647521,189.3,189.27,5.3269849]
[1761320713226,31.68,189.33,189.29,5.3269849]
[1761320713430,10.87647521,189.31,189.25,0.66]
[1761320713806,10.87647521,189.31,189.28,5.3269849]
[1761320714122,31.68,189.33,189.3,5.3269849]
[1761320714309,37.2,189.32,189.29,5.3269849]
[1761320714821,37.2,189.32,189.28,5.28317836]
[1761320715022,37.2,189.32,189.28,0.66]
[1761320715421,37.2,189.32,189.22,5.3269849]
[1761320715422,5.3269849,189.29,189.22,5.3269849]
[1761320715604,5.3269849,189.26,189.21,0.66]
[1761320715806,16.20346011,189.27,189.22,5.3269849]
[1761320716007,0.11,189.3,189.21,19.15789905]
[1761320716008,37.2,189.26,189.21,19.15789905]
[1761320716212,31.68,189.33,189.25,5.3269849]
[1761320716413,31.68,189.33,189.24,22.88]
[1761320716619,31.68,189.33,189.3,5.3269849]
[1761320716620,37.24,189.32,189.3,5.3269849]
[1761320716826,37.24,189.32,189.24,22.88]
[1761320716827,5.3269849,189.37,189.31,10.60932603]
[1761320717122,0.11,189.39,189.31,10.60932603]
[1761320717123,37.24,189.36,189.33,5.3269849]
[1761320717323,5.27954524,189.42,189.35,5.3269849]
[1761320717324,0.11,189.42,189.35,5.3269849]
[1761320717503,10.87647521,189.4,189.37,5.3269849]
[1761320718124,0.11,189.39,189.3,28.8223641]
[1761320718317,5.3269849,189.34,189.29,5.3269849]
[1761320718523,37.26,189.33,189.3,5.3269849]
[1761320718718,37.26,189.33,189.31,5.3269849]
[1761320719113,37.26,189.33,189.3,5.3269849]
[1761320719311,37.26,189.33,189.29,10.60988415]
[1761320719627,37.26,189.33,189.3,6.0369849]
[1761320719925,37.26,189.34,189.32,5.3269849]
[1761320720108,37.26,189.34,189.33,6.0369849]
[1761320720504,37.26,189.36,189.33,28.9169849]
[1761320720726,37.26,189.37,189.35,10.60801937]
[1761320721032,37.28,189.37,189.35,10.60801937]
[1761320721205,37.28,189.37,189.35,11.31801937]
[1761320721530,37.28,189.37,189.36,5.3269849]
[1761320721729,37.28,189.37,189.32,22.88]
[1761320721730,0.11,189.36,189.28,0.71]
[1761320721919,5.3269849,189.35,189.28,0.71]
[1761320722228,5.3269849,189.33,189.28,0.71]
[1761320722417,37.28,189.32,189.28,5.3269849]
[1761320722614,37.28,189.32,189.28,5.99313141]
[1761320722815,10.87647521,189.31,189.25,0.71]
[1761320723018,10.87647521,189.31,189.26,5.3269849]
[1761320723208,37.28,189.3,189.27,5.3269849]
[1761320723416,37.28,189.3,189.28,6.0369849]
[1761320723631,37.28,189.3,189.29,5.3269849]
[1761320723924,37.28,189.3,189.29,6.0369849]
[1761320724828,37.28,189.3,189.29,5.99289925]
[1761320725008,37.28,189.3,189.29,10.60988415]
[1761320725208,37.28,189.3,189.27,5.28326499]
[1761320725714,37.28,189.3,189.25,5.28401585]
[1761320725715,16.20346011,189.29,189.25,5.28401585]
[1761320725918,10.87647521,189.29,189.25,5.99401585]
[1761320726308,10.87647521,189.29,189.23,13.21090797]
[1761320726309,5.3269849,189.28,189.23,5.28437473]
[1761320726504,16.20346011,189.26,189.2,0.71]
[1761320726723,5.3269849,189.24,189.19,5.28569163]
[1761320726931,37.26,189.23,189.19,5.28569163]
[1761320727232,42.5869849,189.23,189.19,5.28569163]
[1761320727739,37.26,189.23,189.19,5.28569163]
[1761320728124,42.5869849,189.23,189.19,5.28569163]
[1761320728319,42.5869849,189.23,189.18,0.71]
[1761320728320,5.3269849,189.21,189.18,5.28594438]
[1761320728723,5.3269849,189.22,189.18,5.28594438]
[1761320728923,42.5869849,189.23,189.18,11.32292928]
[1761320729128,42.5869849,189.23,189.18,10.61292928]
[1761320729326,37.26,189.22,189.19,0.71]
[1761320730132,37.26,189.22,189.18,23.82785686]
[1761320730339,0.11,189.26,189.19,0.71]
[1761320730639,10.87647521,189.24,189.2,5.3269849]
[1761320730814,10.87647521,189.24,189.2,10.61239716]
[1761320731009,16.20346011,189.24,189.2,5.28541226]
[1761320731223,16.20346011,189.24,189.19,5.28566882]
[1761320731224,5.4369849,189.23,189.19,5.28566882]
[1761320731438,5.3269849,189.2,189.16,5.28652992]
[1761320731622,0.11,189.23,189.16,5.28652992]
[1761320731623,37.24,189.19,189.16,10.61351482]
[1761320731822,37.24,189.18,189.16,10.61351482]
[1761320732018,37.24,189.18,189.17,0.71]
[1761320732222,37.24,189.18,189.16,5.99652992]
[1761320732740,37.24,189.18,189.17,6.0369849]
[1761320733139,37.24,189.18,189.17,0.71]
[1761320733316,37.24,189.18,189.16,5.28652992]
[1761320733646,0.11,189.26,189.17,6.0369849]
[1761320733821,5.3269849,189.23,189.17,6.0369849]
[1761320734026,16.20346011,189.24,189.18,5.3269849]
[1761320734334,10.87647521,189.22,189.18,0.71]
[1761320734636,10.87647521,189.22,189.19,10.61267653]
[1761320734840,0.11,189.27,189.19,10.61267653]
[1761320734841,8.09639166,189.27,189.21,8.09639166]
[1761320735042,10.87647521,189.29,189.24,8.09639166]
[1761320735226,10.87647521,189.29,189.22,0.71]
[1761320735227,11.54161838,189.34,189.28,8.09639166]
[1761320735426,10.87647521,189.32,189.3,8.09639166]
[1761320735638,10.87647521,189.32,189.25,0.71]
[1761320735941,10.87647521,189.29,189.24,8.09639166]
[1761320736124,37.26,189.28,189.24,8.09639166]
[1761320736319,37.26,189.28,189.23,23.59]
[1761320736320,0.11,189.35,189.27,8.09639166]
[1761320736533,0.11,189.35,189.28,5.28317836]
[1761320736534,10.87647521,189.32,189.28,5.28317836]
[1761320736743,8.09639166,189.31,189.26,8.80639166]
[1761320736940,37.26,189.3,189.26,13.38002017]
[1761320737120,37.26,189.3,189.26,0.71]
[1761320737439,18.97286687,189.32,189.27,0.71]
[1761320737644,37.26,189.31,189.27,8.80639166]
[1761320737945,37.26,189.31,189.27,0.71]
[1761320738140,10.87647521,189.3,189.25,8.09639166]
[1761320738651,10.87647521,189.3,189.26,5.28373665]
[1761320739024,8.09639166,189.28,189.26,5.28373665]
[1761320739225,37.24,189.27,189.26,5.28373665]
[1761320740230,37.24,189.27,189.24,27.30142441]
[1761320740739,10.87647521,189.32,189.25,8.80639166]
[1761320740946,10.87647521,189.29,189.25,8.80639166]
[1761320741245,3.46690599,189.29,189.25,8.80639166]
[1761320741419,37.22,189.28,189.25,8.80639166]
[1761320741622,37.22,189.28,189.26,0.71]
[1761320742343,37.22,189.28,189.26,5.28373665]
[1761320742641,37.22,189.28,189.25,5.28398892]
[1761320742642,10.87647521,189.27,189.25,5.28398892]
[1761320743137,8.20639166,189.26,189.19,5.28569163]
[1761320743324,8.20639166,189.26,189.18,0.71]
[1761320743325,8.09639166,189.22,189.18,0.71]
[1761320743652,37.2,189.21,189.18,0.71]
[1761320743843,37.2,189.2,189.18,0.71]
[1761320744227,37.2,189.2,189.19,5.28569163]
[1761320745227,37.2,189.2,189.16,13.92570378]
[1761320745228,37.2,189.2,189.16,22.02209544]
[1761320745422,37.2,189.2,189.17,0.71]
[1761320745829,37.2,189.2,189.17,5.99625046]
[1761320748644,37.2,189.2,189.18,0.71]
[1761320748842,18.97286687,189.23,189.18,8.80639166]
[1761320749046,37.2,189.22,189.18,8.80639166]
[1761320749755,37.2,189.22,189.19,8.77639166]
[1761320749956,37.2,189.22,189.18,8.09639166]
[1761320750157,37.2,189.22,189.18,8.77639166]
[1761320750528,37.2,189.22,189.19,5.28569163]
[1761320751150,0.11,189.25,189.19,5.96569163]
[1761320751361,10.87647521,189.23,189.19,5.28569163]
[1761320751562,18.97286687,189.23,189.19,5.28569163]
[1761320751757,8.09639166,189.22,189.17,14.06259109]
[1761320751938,8.09639166,189.22,189.17,5.28619943]
[1761320751939,48.07647521,189.21,189.17,5.28619943]
[1761320752550,56.28286687,189.21,189.16,18.50254238]
[1761320752752,3.49625504,189.2,189.16,18.50254238]
[1761320752957,40.67625504,189.2,189.16,18.50254238]
[1761320753135,45.27639166,189.2,189.16,18.50254238]
[1761320753454,45.27639166,189.2,189.16,5.28652992]
[1761320753657,8.09639166,189.2,189.17,0.68]
[1761320753835,37.18,189.19,189.16,5.28652992]
[1761320754957,37.18,189.19,189.16,5.96652992]
[1761320755261,37.18,189.19,189.16,5.28652992]
[1761320755853,37.18,189.19,189.16,5.94652992]
[1761320756043,10.87647521,189.18,189.14,28.16689419]
[1761320756356,10.87647521,189.18,189.13,0.66]
[1761320756357,10.87647521,189.18,189.13,5.94734008]
[1761320756536,10.87647521,189.18,189.13,14.04373174]
[1761320756738,10.87647521,189.18,189.13,5.94734008]
[1761320757051,18.97286687,189.18,189.13,5.94734008]
[1761320758243,8.09639166,189.17,189.13,5.94734008]
[1761320758452,8.09639166,189.17,189.1,22.98]
[1761320758453,37.2,189.16,189.14,0.66]
[1761320758770,37.2,189.16,189.14,8.09639166]
[1761320758937,8.09639166,189.23,189.15,0.66]
[1761320759136,4.34432299,189.26,189.14,22.88]
[1761320759137,10.87647521,189.2,189.14,22.88]
[1761320759364,10.87647521,189.18,189.15,0.66]
[1761320759538,10.87647521,189.18,189.15,8.75639166]
[1761320759945,10.87647521,189.18,189.16,0.66]
[1761320760145,10.87647521,189.18,189.16,5.28652992]
[1761320760648,8.09639166,189.22,189.16,5.28652992]
[1761320760872,10.87647521,189.2,189.17,0.66]
[1761320761037,10.87647521,189.2,189.15,8.09639166]
[1761320761237,10.98647521,189.2,189.15,5.28666494]
[1761320761765,10.87647521,189.18,189.15,5.28666494]
[1761320761958,37.28,189.17,189.15,5.28666494]
[1761320762165,37.28,189.17,189.13,5.9471441]
[1761320762378,37.28,189.17,189.14,0.66]
[1761320762581,37.28,189.17,189.14,8.09639166]
[1761320762881,37.28,189.17,189.12,19.16676818]
[1761320763088,8.09639166,189.13,189.1,0.1]
[1761320763246,18.97286687,189.11,189.1,0.1]
[1761320763575,56.27286687,189.11,189.1,0.1]
[1761320763947,37.3,189.11,189.1,0.76]
[1761320764160,37.3,189.11,189.1,0.1]
[1761320764445,56.27286687,189.11,189.1,0.1]
[1761320764642,19.08286687,189.11,189.1,0.1]
[1761320764877,61.67079453,189.11,189.1,0.1]
[1761320765456,10.87647521,189.11,189.1,0.1]
[1761320765684,56.27286687,189.11,189.1,0.1]
[1761320765854,61.67079453,189.11,189.1,0.1]
[1761320766045,56.38286687,189.11,189.1,0.1]
[1761320766245,76.45440287,189.11,189.1,0.1]
[1761320766463,76.45440287,189.11,189.06,0.1]
[1761320766464,10.87647521,189.1,189.06,0.1]
[1761320766667,18.97286687,189.07,189.06,0.1]
[1761320766881,56.31286687,189.07,189.06,0.1]
[1761320767050,18.97286687,189.07,189.06,0.1]
[1761320767254,48.23647521,189.07,189.06,0.1]
[1761320767457,56.33286687,189.07,189.06,0.1]
[1761320767657,15.62285732,189.14,189.06,0.1]
[1761320767883,10.87647521,189.08,189.06,0.1]
[1761320768086,48.23647521,189.07,189.06,0.1]
[1761320768246,22.88,189.11,189.06,0.1]
[1761320768450,37.36,189.1,189.06,8.85639166]
[1761320768650,37.36,189.09,189.06,8.85639166]
[1761320768867,37.36,189.08,189.07,0.66]
[1761320769478,37.36,189.08,189.07,8.75639166]
[1761320769675,10.87647521,189.07,189.06,0.1]
[1761320769879,18.97286687,189.07,189.06,0.1]
[1761320770269,24.26191325,189.07,189.06,0.1]
[1761320770965,37.48452921,189.07,188.86,1.99999999]
[1761320771173,8.09639166,189.02,188.96,8.09639166]
[1761320771363,37.38,189.01,188.96,30.97639166]
[1761320772268,45.47639166,189.01,188.96,28.17205155]
[1761320772578,37.38,189.01,188.96,36.26844321]
[1761320773080,37.38,189.01,188.96,28.17205155]
[1761320773415,37.38,189.01,188.91,15.89446078]
[1761320773416,10.87647521,189.0,188.91,15.89446078]
[1761320773681,10.87647521,188.96,188.91,15.89446078]
[1761320773895,10.87647521,188.96,188.92,8.09639166]
[1761320773896,37.4,188.95,188.92,8.09639166]
[1761320774103,5.29039011,189.03,188.94,8.09639166]
[1761320774258,5.29039011,189.03,188.81,27.8643]
[1761320774259,48.29647521,189.02,188.91,0.66]
[1761320774562,37.42,189.01,188.97,8.09639166]
[1761320774762,37.42,189.01,188.98,8.09639166]
[1761320774973,37.42,189.01,188.93,22.88]
[1761320775174,31.61166273,189.14,188.93,22.88]
[1761320775374,10.87647521,189.06,188.94,0.66]
[1761320775597,10.87647521,189.04,188.96,22.88]
[1761320775763,10.87647521,189.04,188.94,0.66]
[1761320775968,10.87647521,189.04,189.01,8.09639166]
[1761320776363,28.16913887,189.07,189.01,8.09639166]
[1761320776563,48.29647521,189.06,189.01,8.09639166]
[1761320776987,48.29647521,189.06,189.0,13.38735153]
[1761320777204,48.29647521,189.06,189.01,8.09639166]
[1761320777398,48.29647521,189.06,189.02,8.09639166]
[1761320777607,37.42,189.05,189.02,8.09639166]
[1761320778007,37.42,189.05,188.95,0.66]
[1761320778216,5.29016558,189.03,188.9,28.17380624]
[1761320778513,10.87647521,189.01,188.96,30.97639166]
[1761320778681,37.44,189.0,188.96,30.97639166]